[Event "Early-Titled-Tuesday-Blitz-February-27-2024"]
[Site "Chess.com"]
[Date "2024.02.27"]
[Round "5"]
[White "toog"]
[Black "Eagle_2019"]
[Result "0-1"]
[WhiteElo "2631"]
[BlackElo "2888"]
[TimeControl "180+1"]
[EndTime "8:53:10 PST"]
[Termination "Eagle_2019 won by resignation"]

1. d4 {[%clk 0:01:08.4]} 1... d5 {[%clk 0:02:59.1]} 2. Nf3 {[%clk 0:01:08.3]}
2... Nf6 {[%clk 0:02:58.8]} 3. g3 {[%clk 0:01:08.4]} 3... e6 {[%clk 0:02:57.3]}
4. Bg2 {[%clk 0:01:09.3]} 4... Be7 {[%clk 0:02:57.6]} 5. c4 {[%clk 0:01:09.4]}
5... O-O {[%clk 0:02:57.3]} 6. O-O {[%clk 0:01:09.7]} 6... Nbd7 {[%clk
0:02:57.1]} 7. Qc2 {[%clk 0:01:09.8]} 7... c6 {[%clk 0:02:56.1]} 8. Nbd2 {[%clk
0:01:08.7]} 8... b6 {[%clk 0:02:56.1]} 9. e4 {[%clk 0:01:08.5]} 9... dxc4 {[%clk
0:02:55.7]} 10. Nxc4 {[%clk 0:01:06.7]} 10... Bb7 {[%clk 0:02:53.9]} 11. Rd1
{[%clk 0:01:06.5]} 11... c5 {[%clk 0:02:51.7]} 12. e5 {[%clk 0:01:04.9]} 12...
Nd5 {[%clk 0:02:41.3]} 13. h4 {[%clk 0:01:04.9]} 13... h6 {[%clk 0:02:27.9]} 14.
Nd6 {[%clk 0:00:57.5]} 14... Bxd6 {[%clk 0:02:26.6]} 15. exd6 {[%clk 0:00:58.4]}
15... Rc8 {[%clk 0:02:25.5]} 16. Qe2 {[%clk 0:00:56.1]} 16... N7f6 {[%clk
0:02:17.9]} 17. dxc5 {[%clk 0:00:54.8]} 17... Rxc5 {[%clk 0:02:17.7]} 18. Bd2
{[%clk 0:00:50]} 18... Rc6 {[%clk 0:01:51.7]} 19. Ne5 {[%clk 0:00:37.9]} 19...
Rxd6 {[%clk 0:01:51.3]} 20. g4 {[%clk 0:00:36.9]} 20... Nh7 {[%clk 0:01:41.7]}
21. g5 {[%clk 0:00:35.6]} 21... hxg5 {[%clk 0:01:40.2]} 22. hxg5 {[%clk
0:00:36.5]} 22... Nxg5 {[%clk 0:01:35]} 23. Qh5 {[%clk 0:00:36.6]} 23... Nh7
{[%clk 0:01:30.6]} 24. Rac1 {[%clk 0:00:32.4]} 24... Ndf6 {[%clk 0:01:27.3]} 25.
Qe2 {[%clk 0:00:28.5]} 25... Bxg2 {[%clk 0:01:26.7]} 26. Kxg2 {[%clk 0:00:29.4]}
26... Qa8+ {[%clk 0:01:18.2]} 27. Kg1 {[%clk 0:00:29.3]} 27... Rd5 {[%clk
0:00:54.3]} 28. Bc3 {[%clk 0:00:27.7]} 28... Ng5 {[%clk 0:00:51.3]} 29. Rxd5
{[%clk 0:00:26.1]} 29... Qxd5 {[%clk 0:00:46.9]} 30. Qg4 {[%clk 0:00:24.6]}
30... Nxg4 {[%clk 0:00:46.3]} 0-1

[Event "Early-Titled-Tuesday-Blitz-February-27-2024"]
[Site "Chess.com"]
[Date "2024.02.27"]
[Round "5"]
[White "ChessSwole"]
[Black "falzehope0"]
[Result "1-0"]
[WhiteElo "2691"]
[BlackElo "2344"]
[TimeControl "180+1"]
[EndTime "8:53:11 PST"]
[Termination "ChessSwole won by resignation"]

1. e4 {[%clk 0:03:00.9]} 1... d6 {[%clk 0:03:00.9]} 2. d4 {[%clk 0:03:00.2]}
2... Nf6 {[%clk 0:03:01.6]} 3. Bd3 {[%clk 0:03:00.1]} 3... Nbd7 {[%clk
0:03:01.6]} 4. Nf3 {[%clk 0:02:59.6]} 4... e5 {[%clk 0:03:01.9]} 5. c3 {[%clk
0:03:00]} 5... Be7 {[%clk 0:03:01.4]} 6. O-O {[%clk 0:03:00.2]} 6... O-O {[%clk
0:03:01.8]} 7. Nbd2 {[%clk 0:03:00.5]} 7... c6 {[%clk 0:02:59.3]} 8. Re1 {[%clk
0:02:59.2]} 8... h6 {[%clk 0:02:57.2]} 9. a4 {[%clk 0:02:58.4]} 9... g5 {[%clk
0:02:56.4]} 10. Nc4 {[%clk 0:02:54.7]} 10... Re8 {[%clk 0:02:52.3]} 11. dxe5
{[%clk 0:02:53.1]} 11... dxe5 {[%clk 0:02:48.3]} 12. Nfxe5 {[%clk 0:02:52.6]}
12... Nc5 {[%clk 0:02:45.8]} 13. Bc2 {[%clk 0:02:46.5]} 13... Qxd1 {[%clk
0:02:37.6]} 14. Rxd1 {[%clk 0:02:47.4]} 14... Ncxe4 {[%clk 0:02:34.5]} 15. Be3
{[%clk 0:02:43.5]} 15... Nc5 {[%clk 0:02:15.9]} 16. Nd6 {[%clk 0:02:39]} 16...
Bxd6 {[%clk 0:02:13.3]} 17. Rxd6 {[%clk 0:02:39.9]} 17... Nfe4 {[%clk
0:02:08.9]} 18. Rxh6 {[%clk 0:02:30.4]} 18... Rxe5 {[%clk 0:02:05.2]} 19. Bd4
{[%clk 0:02:30.1]} 19... f6 {[%clk 0:01:55.2]} 20. Bxe5 {[%clk 0:02:17.3]} 20...
fxe5 {[%clk 0:01:53.6]} 21. b4 {[%clk 0:02:03.9]} 21... Kg7 {[%clk 0:01:52]} 22.
bxc5 {[%clk 0:01:42.7]} 22... Kxh6 {[%clk 0:01:49.9]} 23. Bxe4 {[%clk
0:01:43.2]} 23... Be6 {[%clk 0:01:31.8]} 24. Rb1 {[%clk 0:01:38.5]} 24... Bc8
{[%clk 0:01:27.7]} 25. f3 {[%clk 0:01:34.6]} 25... Kg7 {[%clk 0:01:23.9]} 26.
Kf2 {[%clk 0:01:30.9]} 26... Kf6 {[%clk 0:01:23.7]} 27. Ke3 {[%clk 0:01:29.3]}
27... Ke7 {[%clk 0:01:22.8]} 28. a5 {[%clk 0:01:27.5]} 28... Kd7 {[%clk
0:01:15.7]} 29. Rd1+ {[%clk 0:01:23.5]} 29... Kc7 {[%clk 0:01:15.2]} 30. Rd6
{[%clk 0:01:23.4]} 30... Bd7 {[%clk 0:01:12.6]} 31. Rg6 {[%clk 0:01:20]} 31...
g4 {[%clk 0:01:05.9]} 32. fxg4 {[%clk 0:01:20.9]} 32... Rf8 {[%clk 0:01:04.3]}
33. Rg7 {[%clk 0:01:20.3]} 33... Kc8 {[%clk 0:01:04.2]} 34. h4 {[%clk
0:01:17.2]} 34... Rf1 {[%clk 0:01:03.6]} 35. Bf5 {[%clk 0:01:13.1]} 35... Bxf5
{[%clk 0:01:02.2]} 36. gxf5 {[%clk 0:01:14]} 36... Rxf5 {[%clk 0:01:02.4]} 37.
g4 {[%clk 0:01:14.7]} 37... Rf1 {[%clk 0:01:01.2]} 38. h5 {[%clk 0:01:14.3]}
38... Rh1 {[%clk 0:00:57.7]} 39. Ke4 {[%clk 0:01:10.8]} 39... Re1+ {[%clk
0:00:54.6]} 40. Kf5 {[%clk 0:01:10.9]} 40... e4 {[%clk 0:00:55.2]} 41. h6 {[%clk
0:01:10.3]} 41... e3 {[%clk 0:00:54.9]} 42. h7 {[%clk 0:01:10.6]} 42... Rh1
{[%clk 0:00:54.7]} 43. Rg8+ {[%clk 0:01:07.8]} 43... Kd7 {[%clk 0:00:54]} 44.
h8=Q {[%clk 0:01:08.7]} 44... Rxh8 {[%clk 0:00:49.7]} 45. Rxh8 {[%clk
0:01:09.6]} 45... e2 {[%clk 0:00:49.9]} 46. Rh1 {[%clk 0:01:10.1]} 46... b6
{[%clk 0:00:50.3]} 47. axb6 {[%clk 0:01:09.1]} 47... axb6 {[%clk 0:00:51.2]} 48.
cxb6 {[%clk 0:01:09]} 48... c5 {[%clk 0:00:51.6]} 49. g5 {[%clk 0:01:08.3]}
49... Kc6 {[%clk 0:00:51.5]} 50. Re1 {[%clk 0:01:08.1]} 50... Kxb6 {[%clk
0:00:51.4]} 51. g6 {[%clk 0:01:08.7]} 51... Kb5 {[%clk 0:00:52]} 52. g7 {[%clk
0:01:09.5]} 52... Kc4 {[%clk 0:00:52.8]} 53. g8=Q+ {[%clk 0:01:10.2]} 53... Kxc3
{[%clk 0:00:52.8]} 54. Rxe2 {[%clk 0:01:10.5]} 54... c4 {[%clk 0:00:53]} 55.
Qg7+ {[%clk 0:01:11.2]} 55... Kd3 {[%clk 0:00:52.8]} 56. Qe5 {[%clk 0:01:10.9]}
1-0

[Event "Early-Titled-Tuesday-Blitz-February-27-2024"]
[Site "Chess.com"]
[Date "2024.02.27"]
[Round "5"]
[White "LimeInTheCoconut"]
[Black "FernandoArauzAlonso"]
[Result "1/2-1/2"]
[WhiteElo "2504"]
[BlackElo "2649"]
[TimeControl "180+1"]
[EndTime "8:53:13 PST"]
[Termination "Game drawn by repetition"]

1. b3 {[%clk 0:03:00.9]} 1... Nf6 {[%clk 0:02:53.5]} 2. Bb2 {[%clk 0:03:00.5]}
2... g6 {[%clk 0:02:51.3]} 3. Bxf6 {[%clk 0:02:59.8]} 3... exf6 {[%clk
0:02:51.2]} 4. c4 {[%clk 0:03:00.5]} 4... Bg7 {[%clk 0:02:48.3]} 5. Nc3 {[%clk
0:03:00.1]} 5... f5 {[%clk 0:02:47.3]} 6. Rc1 {[%clk 0:03:00.4]} 6... Nc6 {[%clk
0:02:29.8]} 7. g3 {[%clk 0:02:59.3]} 7... O-O {[%clk 0:02:18.9]} 8. Bg2 {[%clk
0:02:58.8]} 8... Re8 {[%clk 0:02:19.6]} 9. e3 {[%clk 0:02:58.2]} 9... Ne7 {[%clk
0:02:19.6]} 10. Nge2 {[%clk 0:02:56.6]} 10... c6 {[%clk 0:02:20.1]} 11. d4
{[%clk 0:02:52.6]} 11... d6 {[%clk 0:02:20]} 12. O-O {[%clk 0:02:50.2]} 12... a5
{[%clk 0:02:09.9]} 13. a3 {[%clk 0:02:47.1]} 13... Qc7 {[%clk 0:02:01.9]} 14. b4
{[%clk 0:02:44.4]} 14... axb4 {[%clk 0:02:00]} 15. axb4 {[%clk 0:02:45.3]} 15...
Bd7 {[%clk 0:01:54.7]} 16. Qb3 {[%clk 0:02:41.6]} 16... Ra7 {[%clk 0:01:53.2]}
17. Ra1 {[%clk 0:02:38]} 17... Rea8 {[%clk 0:01:52.9]} 18. Qb2 {[%clk
0:02:36.2]} 18... Qb8 {[%clk 0:01:44.7]} 19. b5 {[%clk 0:02:14.4]} 19... c5
{[%clk 0:01:10.7]} 20. Nd5 {[%clk 0:01:58.4]} 20... Nxd5 {[%clk 0:01:10]} 21.
Bxd5 {[%clk 0:01:58.2]} 21... Be6 {[%clk 0:01:07.7]} 22. Nf4 {[%clk 0:01:51.6]}
22... Bxd5 {[%clk 0:01:00.1]} 23. Nxd5 {[%clk 0:01:52.5]} 23... Rxa1 {[%clk
0:01:00.3]} 24. Rxa1 {[%clk 0:01:50.8]} 24... Rxa1+ {[%clk 0:01:00.6]} 25. Qxa1
{[%clk 0:01:51.7]} 25... cxd4 {[%clk 0:01:01.2]} 26. exd4 {[%clk 0:01:52.6]}
26... Qe8 {[%clk 0:00:57.3]} 27. Nc7 {[%clk 0:01:16.9]} 27... Qe4 {[%clk
0:00:51]} 28. Qa8+ {[%clk 0:01:12.7]} 28... Bf8 {[%clk 0:00:51.1]} 29. Nd5
{[%clk 0:00:32.6]} 29... Qe1+ {[%clk 0:00:33.1]} 30. Kg2 {[%clk 0:00:31.7]}
30... Qe4+ {[%clk 0:00:33.3]} 31. Kg1 {[%clk 0:00:31.9]} 31... Qe1+ {[%clk
0:00:33.4]} 32. Kg2 {[%clk 0:00:32.2]} 32... Qe4+ {[%clk 0:00:33.6]} 33. Kg1
{[%clk 0:00:32.9]} 1/2-1/2

[Event "Early-Titled-Tuesday-Blitz-February-27-2024"]
[Site "Chess.com"]
[Date "2024.02.27"]
[Round "5"]
[White "Al_Shima"]
[Black "TERMINATOR_PC"]
[Result "1-0"]
[WhiteElo "2421"]
[BlackElo "2558"]
[TimeControl "180+1"]
[EndTime "8:53:13 PST"]
[Termination "Al_Shima won by resignation"]

1. e4 {[%clk 0:02:56.1]} 1... e5 {[%clk 0:02:59.2]} 2. Bc4 {[%clk 0:02:56.1]}
2... Nf6 {[%clk 0:02:55.7]} 3. d4 {[%clk 0:02:56.2]} 3... exd4 {[%clk
0:02:46.8]} 4. Nf3 {[%clk 0:02:56.7]} 4... Nc6 {[%clk 0:02:46]} 5. O-O {[%clk
0:02:56]} 5... Nxe4 {[%clk 0:02:45.5]} 6. Re1 {[%clk 0:02:55.1]} 6... d5 {[%clk
0:02:43.4]} 7. Bxd5 {[%clk 0:02:55.1]} 7... Qxd5 {[%clk 0:02:36.6]} 8. Nc3
{[%clk 0:02:55.2]} 8... Qd7 {[%clk 0:02:34.3]} 9. Rxe4+ {[%clk 0:02:48.7]} 9...
Be7 {[%clk 0:02:33.5]} 10. Nxd4 {[%clk 0:02:49]} 10... f5 {[%clk 0:02:31.6]} 11.
Rf4 {[%clk 0:02:34.1]} 11... Bd6 {[%clk 0:02:26.5]} 12. Qe2+ {[%clk 0:02:03.9]}
12... Ne7 {[%clk 0:02:16.4]} 13. Rxf5 {[%clk 0:01:38.4]} 13... c5 {[%clk
0:01:53.9]} 14. Ndb5 {[%clk 0:01:36.5]} 14... Bb8 {[%clk 0:00:37]} 15. Rf3
{[%clk 0:00:49.5]} 15... a6 {[%clk 0:00:33]} 16. Na3 {[%clk 0:00:43.8]} 16... b5
{[%clk 0:00:33.4]} 17. Ne4 {[%clk 0:00:28.5]} 17... Bb7 {[%clk 0:00:22.4]} 18.
Bf4 {[%clk 0:00:28.1]} 18... Qe6 {[%clk 0:00:06.7]} 1-0

[Event "Early-Titled-Tuesday-Blitz-February-27-2024"]
[Site "Chess.com"]
[Date "2024.02.27"]
[Round "5"]
[White "Austen48"]
[Black "FMStan15"]
[Result "1-0"]
[WhiteElo "2253"]
[BlackElo "2086"]
[TimeControl "180+1"]
[EndTime "8:53:14 PST"]
[Termination "Austen48 won by checkmate"]

1. d4 {[%clk 0:02:59.8]} 1... Nf6 {[%clk 0:02:57.2]} 2. c4 {[%clk 0:02:59.1]}
2... g6 {[%clk 0:02:56.8]} 3. Nc3 {[%clk 0:02:56.9]} 3... Bg7 {[%clk 0:02:56.9]}
4. e4 {[%clk 0:02:56.3]} 4... d6 {[%clk 0:02:57.4]} 5. f3 {[%clk 0:02:56.2]}
5... O-O {[%clk 0:02:57.5]} 6. Be3 {[%clk 0:02:56.4]} 6... e5 {[%clk 0:02:57.9]}
7. Nge2 {[%clk 0:02:55.1]} 7... c6 {[%clk 0:02:53.1]} 8. Qd2 {[%clk 0:02:54.3]}
8... Ne8 {[%clk 0:02:52.5]} 9. d5 {[%clk 0:02:53.8]} 9... cxd5 {[%clk
0:02:52.1]} 10. cxd5 {[%clk 0:02:51.7]} 10... a6 {[%clk 0:02:51.4]} 11. g4
{[%clk 0:02:51.5]} 11... b5 {[%clk 0:02:51.2]} 12. O-O-O {[%clk 0:02:51.1]}
12... Qa5 {[%clk 0:02:50]} 13. Ng3 {[%clk 0:02:42.1]} 13... b4 {[%clk
0:02:49.6]} 14. Nb1 {[%clk 0:02:38.4]} 14... Qxa2 {[%clk 0:02:48.6]} 15. Qxb4
{[%clk 0:02:37.3]} 15... Nd7 {[%clk 0:02:35.4]} 16. Bc4 {[%clk 0:02:35.8]} 16...
Qa1 {[%clk 0:02:35]} 17. Rd3 {[%clk 0:02:25.4]} 17... Rb8 {[%clk 0:02:33.7]} 18.
Qxb8 {[%clk 0:02:12]} 18... Nxb8 {[%clk 0:02:33.1]} 19. Ra3 {[%clk 0:02:11.9]}
19... Qxa3 {[%clk 0:02:31.4]} 20. Nxa3 {[%clk 0:02:11.5]} 20... f5 {[%clk
0:02:22.9]} 21. gxf5 {[%clk 0:02:10]} 21... gxf5 {[%clk 0:02:22.9]} 22. Ba7
{[%clk 0:02:00]} 22... Nd7 {[%clk 0:02:20.8]} 23. Nxf5 {[%clk 0:01:56.9]} 23...
Kh8 {[%clk 0:02:03.5]} 24. Rg1 {[%clk 0:01:48.4]} 24... Bf6 {[%clk 0:01:38.5]}
25. Nc2 {[%clk 0:01:37.6]} 25... Nc5 {[%clk 0:01:33]} 26. Nce3 {[%clk
0:01:37.1]} 26... Bxf5 {[%clk 0:01:26.2]} 27. Nxf5 {[%clk 0:01:36]} 27... Rf7
{[%clk 0:01:09.8]} 28. Bxc5 {[%clk 0:01:33.2]} 28... dxc5 {[%clk 0:01:09.4]} 29.
d6 {[%clk 0:01:26.8]} 29... Rf8 {[%clk 0:01:09.3]} 30. Bxa6 {[%clk 0:01:23.2]}
30... h6 {[%clk 0:01:02.5]} 31. Kc2 {[%clk 0:01:21.5]} 31... Bg5 {[%clk
0:00:57.8]} 32. h4 {[%clk 0:01:19.9]} 32... Bd8 {[%clk 0:00:52.5]} 33. Bc4
{[%clk 0:01:18.5]} 33... Nf6 {[%clk 0:00:49.3]} 34. Nxh6 {[%clk 0:01:13.3]}
34... Bb6 {[%clk 0:00:37.9]} 35. Nf7+ {[%clk 0:01:03.6]} 35... Kh7 {[%clk
0:00:37.4]} 36. Nxe5 {[%clk 0:01:03.2]} 36... Rd8 {[%clk 0:00:28.4]} 37. Nf7
{[%clk 0:00:59.2]} 37... Rd7 {[%clk 0:00:26.7]} 38. e5 {[%clk 0:00:58.7]} 38...
Ne8 {[%clk 0:00:25.9]} 39. Bd3# {[%clk 0:00:52.8]} 1-0

[Event "Early-Titled-Tuesday-Blitz-February-27-2024"]
[Site "Chess.com"]
[Date "2024.02.27"]
[Round "5"]
[White "1977Ivan"]
[Black "jefferyx"]
[Result "0-1"]
[WhiteElo "2732"]
[BlackElo "3044"]
[TimeControl "180+1"]
[EndTime "8:53:17 PST"]
[Termination "jefferyx won by resignation"]

1. d4 {[%clk 0:02:56.5]} 1... d5 {[%clk 0:02:59.7]} 2. c4 {[%clk 0:02:56.9]}
2... e6 {[%clk 0:03:00]} 3. Nc3 {[%clk 0:02:56.7]} 3... Nf6 {[%clk 0:02:58.7]}
4. cxd5 {[%clk 0:02:54.7]} 4... exd5 {[%clk 0:02:59.6]} 5. Bg5 {[%clk
0:02:53.8]} 5... c6 {[%clk 0:02:59.9]} 6. e3 {[%clk 0:02:53.9]} 6... Bd6 {[%clk
0:03:00.1]} 7. Bd3 {[%clk 0:02:50.4]} 7... O-O {[%clk 0:03:00]} 8. Nge2 {[%clk
0:02:48.5]} 8... Re8 {[%clk 0:03:00]} 9. Qc2 {[%clk 0:02:47.5]} 9... h6 {[%clk
0:02:59.9]} 10. Bh4 {[%clk 0:02:47.2]} 10... a5 {[%clk 0:03:00.4]} 11. h3 {[%clk
0:02:41]} 11... Na6 {[%clk 0:03:00.6]} 12. a3 {[%clk 0:02:41.2]} 12... Nc7
{[%clk 0:03:00.3]} 13. O-O {[%clk 0:02:41.1]} 13... Ne6 {[%clk 0:02:59.2]} 14.
Rad1 {[%clk 0:02:32.8]} 14... Bd7 {[%clk 0:02:17.1]} 15. Bf5 {[%clk 0:02:08.9]}
15... Ng5 {[%clk 0:02:08.7]} 16. f4 {[%clk 0:01:49]} 16... Bxf5 {[%clk
0:02:07.5]} 17. Qxf5 {[%clk 0:01:49.9]} 17... Ngh7 {[%clk 0:02:01.3]} 18. Rf3
{[%clk 0:01:29.6]} 18... Qd7 {[%clk 0:02:01.2]} 19. Qc2 {[%clk 0:01:28.8]} 19...
b5 {[%clk 0:02:00.9]} 20. Ng3 {[%clk 0:01:23.9]} 20... g5 {[%clk 0:01:39.3]} 21.
fxg5 {[%clk 0:00:35.3]} 21... hxg5 {[%clk 0:01:40.2]} 22. Rdf1 {[%clk
0:00:34.2]} 22... gxh4 {[%clk 0:01:39.4]} 23. Nh5 {[%clk 0:00:31.4]} 23... Ne4
{[%clk 0:01:00.7]} 24. Rxf7 {[%clk 0:00:32.3]} 24... Qe6 {[%clk 0:01:00.8]} 25.
Nxe4 {[%clk 0:00:21]} 25... Qxe4 {[%clk 0:01:00.3]} 26. Qf2 {[%clk 0:00:20.6]}
26... Qxe3 {[%clk 0:00:53]} 27. Rg7+ {[%clk 0:00:17.3]} 27... Kh8 {[%clk
0:00:53.1]} 28. Qxe3 {[%clk 0:00:17.8]} 28... Rxe3 {[%clk 0:00:52.9]} 29. Rff7
{[%clk 0:00:18.6]} 29... Nf8 {[%clk 0:00:45.7]} 30. Nf6 {[%clk 0:00:17.9]} 30...
Re1+ {[%clk 0:00:45.4]} 31. Kf2 {[%clk 0:00:17.6]} 31... Bg3+ {[%clk 0:00:46.3]}
32. Kf3 {[%clk 0:00:14.9]} 32... Rf1+ {[%clk 0:00:47.2]} 33. Kg4 {[%clk
0:00:14.8]} 33... Rxf6 {[%clk 0:00:48.1]} 0-1

[Event "Early-Titled-Tuesday-Blitz-February-27-2024"]
[Site "Chess.com"]
[Date "2024.02.27"]
[Round "5"]
[White "Szparu"]
[Black "dosto07"]
[Result "1-0"]
[WhiteElo "2770"]
[BlackElo "2490"]
[TimeControl "180+1"]
[EndTime "8:53:17 PST"]
[Termination "Szparu won on time"]

1. e4 {[%clk 0:03:00.9]} 1... e5 {[%clk 0:02:59.2]} 2. f4 {[%clk 0:03:00.7]}
2... d5 {[%clk 0:02:58.6]} 3. exd5 {[%clk 0:03:00.4]} 3... exf4 {[%clk
0:02:58.8]} 4. Nf3 {[%clk 0:03:00.4]} 4... Nf6 {[%clk 0:02:59]} 5. Bc4 {[%clk
0:02:57.3]} 5... Bd6 {[%clk 0:02:57.5]} 6. O-O {[%clk 0:02:56.2]} 6... O-O
{[%clk 0:02:57.9]} 7. Nc3 {[%clk 0:02:56]} 7... c6 {[%clk 0:02:58.1]} 8. d4
{[%clk 0:02:40.6]} 8... Bg4 {[%clk 0:02:51.1]} 9. h3 {[%clk 0:02:38.6]} 9... Bh5
{[%clk 0:02:50.6]} 10. dxc6 {[%clk 0:02:24.8]} 10... Nxc6 {[%clk 0:02:50.3]} 11.
d5 {[%clk 0:02:16.8]} 11... Bxf3 {[%clk 0:02:13.1]} 12. Qxf3 {[%clk 0:02:10.4]}
12... Ne5 {[%clk 0:01:49]} 13. Qe2 {[%clk 0:02:10.5]} 13... f3 {[%clk
0:01:43.7]} 14. gxf3 {[%clk 0:02:11.4]} 14... Qc8 {[%clk 0:01:42.1]} 15. Bb3
{[%clk 0:02:09]} 15... Qxh3 {[%clk 0:01:39.7]} 16. Bf4 {[%clk 0:01:57.8]} 16...
Bc5+ {[%clk 0:01:21.8]} 17. Be3 {[%clk 0:01:54.2]} 17... Qg3+ {[%clk 0:01:10.7]}
18. Kh1 {[%clk 0:01:54.2]} 18... Bxe3 {[%clk 0:00:52.2]} 19. Qxe3 {[%clk
0:01:54.3]} 19... Rfe8 {[%clk 0:00:50]} 20. Qg1 {[%clk 0:01:51.2]} 20... Qh3+
{[%clk 0:00:41.2]} 21. Qh2 {[%clk 0:01:51.5]} 21... Qf5 {[%clk 0:00:36.2]} 22.
Qg2 {[%clk 0:01:34.7]} 22... Ng6 {[%clk 0:00:28.1]} 23. Rae1 {[%clk 0:01:32.4]}
23... Nf4 {[%clk 0:00:27.7]} 24. Qg3 {[%clk 0:01:27.8]} 24... N6xd5 {[%clk
0:00:17.8]} 25. Ne4 {[%clk 0:01:26.8]} 25... Qh5+ {[%clk 0:00:09.3]} 26. Kg1
{[%clk 0:01:26.9]} 26... Nh3+ {[%clk 0:00:07.9]} 27. Kh2 {[%clk 0:01:21.7]}
27... Nhf4+ {[%clk 0:00:06.3]} 28. Kg1 {[%clk 0:01:21.3]} 28... Nh3+ {[%clk
0:00:06]} 29. Kg2 {[%clk 0:01:19.4]} 29... Nhf4+ {[%clk 0:00:06]} 30. Kf2 {[%clk
0:01:17.4]} 30... Nh3+ {[%clk 0:00:05]} 31. Ke2 {[%clk 0:01:16.8]} 31... Nhf4+
{[%clk 0:00:04.5]} 32. Kd2 {[%clk 0:01:16.4]} 32... Rad8 {[%clk 0:00:04]} 33.
Kc1 {[%clk 0:01:13.5]} 33... Rc8 {[%clk 0:00:02.3]} 34. Kb1 {[%clk 0:01:10]}
34... Qf5 {[%clk 0:00:02.2]} 35. Nd6 {[%clk 0:01:05.8]} 35... Rxe1+ {[%clk
0:00:01.4]} 36. Rxe1 {[%clk 0:01:06.2]} 36... Rd8 {[%clk 0:00:01.1]} 37. Nxf5
{[%clk 0:01:05.9]} 1-0

[Event "Early-Titled-Tuesday-Blitz-February-27-2024"]
[Site "Chess.com"]
[Date "2024.02.27"]
[Round "5"]
[White "djano"]
[Black "LuisFSiles"]
[Result "1-0"]
[WhiteElo "2609"]
[BlackElo "2315"]
[TimeControl "180+1"]
[EndTime "8:53:18 PST"]
[Termination "djano won on time"]

1. e4 {[%clk 0:03:00.9]} 1... c5 {[%clk 0:02:59.5]} 2. Nc3 {[%clk 0:02:58.2]}
2... Nc6 {[%clk 0:02:59.1]} 3. f4 {[%clk 0:02:56.7]} 3... g6 {[%clk 0:02:58.5]}
4. Nf3 {[%clk 0:02:55.9]} 4... Bg7 {[%clk 0:02:58.3]} 5. Bc4 {[%clk 0:02:55.8]}
5... e6 {[%clk 0:02:53.4]} 6. O-O {[%clk 0:02:55.9]} 6... Nge7 {[%clk
0:02:53.2]} 7. Qe1 {[%clk 0:02:52.2]} 7... O-O {[%clk 0:02:52.4]} 8. d3 {[%clk
0:02:50.5]} 8... d5 {[%clk 0:02:51.8]} 9. Bb3 {[%clk 0:02:50.3]} 9... Na5 {[%clk
0:02:48.1]} 10. f5 {[%clk 0:02:39.1]} 10... Nxb3 {[%clk 0:02:45.9]} 11. axb3
{[%clk 0:02:37.2]} 11... dxe4 {[%clk 0:02:40.6]} 12. f6 {[%clk 0:02:32.8]} 12...
Bxf6 {[%clk 0:02:20.8]} 13. Nxe4 {[%clk 0:02:32.4]} 13... Bg7 {[%clk 0:02:16.4]}
14. Bg5 {[%clk 0:02:31.3]} 14... f6 {[%clk 0:02:09.4]} 15. Be3 {[%clk
0:02:30.5]} 15... b6 {[%clk 0:02:05.1]} 16. Kh1 {[%clk 0:02:29]} 16... Bb7
{[%clk 0:02:01.2]} 17. b4 {[%clk 0:02:26.7]} 17... cxb4 {[%clk 0:01:39]} 18. Bf4
{[%clk 0:02:27]} 18... e5 {[%clk 0:01:35.7]} 19. Bd2 {[%clk 0:02:26.3]} 19...
Nd5 {[%clk 0:01:32.8]} 20. c3 {[%clk 0:02:19.6]} 20... bxc3 {[%clk 0:01:31.1]}
21. bxc3 {[%clk 0:02:20.5]} 21... a6 {[%clk 0:01:27]} 22. d4 {[%clk 0:02:20.4]}
22... Nf4 {[%clk 0:01:00.2]} 23. dxe5 {[%clk 0:02:05.3]} 23... fxe5 {[%clk
0:00:59.6]} 24. Nfg5 {[%clk 0:01:54.9]} 24... Qd5 {[%clk 0:00:52.7]} 25. c4
{[%clk 0:01:50.2]} 25... Qc6 {[%clk 0:00:48.3]} 26. Bb4 {[%clk 0:01:37.1]} 26...
h6 {[%clk 0:00:40.3]} 27. Bxf8 {[%clk 0:01:35.1]} 27... Rxf8 {[%clk 0:00:40.2]}
28. Qg3 {[%clk 0:01:21.6]} 28... hxg5 {[%clk 0:00:34.3]} 29. Rae1 {[%clk
0:01:21.8]} 29... Qxc4 {[%clk 0:00:22.3]} 30. Nd6 {[%clk 0:01:17.6]} 30... Qd5
{[%clk 0:00:09.7]} 31. Nxb7 {[%clk 0:01:16.5]} 31... Qxb7 {[%clk 0:00:10.6]} 32.
Qxg5 {[%clk 0:01:16.4]} 32... Rf5 {[%clk 0:00:08.4]} 33. Qd8+ {[%clk 0:01:15.8]}
33... Kh7 {[%clk 0:00:08.9]} 34. Qh4+ {[%clk 0:01:14.9]} 34... Rh5 {[%clk
0:00:09]} 35. Qg4 {[%clk 0:01:15.4]} 35... Bf6 {[%clk 0:00:07.5]} 36. Rd1 {[%clk
0:01:14.5]} 36... Rg5 {[%clk 0:00:04.6]} 37. Rd7+ {[%clk 0:01:14.3]} 37... Qxd7
{[%clk 0:00:01.5]} 38. Qxd7+ {[%clk 0:01:15.2]} 38... Kh6 {[%clk 0:00:01.4]} 39.
g3 {[%clk 0:01:11.3]} 1-0

[Event "Early-Titled-Tuesday-Blitz-February-27-2024"]
[Site "Chess.com"]
[Date "2024.02.27"]
[Round "5"]
[White "Truequitos"]
[Black "Kotofeyca"]
[Result "1-0"]
[WhiteElo "2591"]
[BlackElo "2432"]
[TimeControl "180+1"]
[EndTime "8:53:19 PST"]
[Termination "Truequitos won on time"]

1. Nf3 {[%clk 0:02:59.8]} 1... d5 {[%clk 0:03:00]} 2. g3 {[%clk 0:02:59.6]} 2...
c6 {[%clk 0:03:00.3]} 3. Bg2 {[%clk 0:02:59.6]} 3... Bg4 {[%clk 0:03:00.8]} 4.
Ne5 {[%clk 0:02:59.2]} 4... Bh5 {[%clk 0:02:59.9]} 5. c4 {[%clk 0:02:59.6]} 5...
e6 {[%clk 0:02:59.4]} 6. Qb3 {[%clk 0:02:57.4]} 6... Qb6 {[%clk 0:02:54.9]} 7.
Nc3 {[%clk 0:02:52.5]} 7... Bd6 {[%clk 0:02:45.5]} 8. d4 {[%clk 0:02:43.8]} 8...
Nf6 {[%clk 0:01:41.9]} 9. Bf4 {[%clk 0:02:43.5]} 9... Bxe5 {[%clk 0:01:22.9]}
10. Bxe5 {[%clk 0:02:41.2]} 10... dxc4 {[%clk 0:01:23.1]} 11. Qxc4 {[%clk
0:02:37.7]} 11... Qxb2 {[%clk 0:00:54.1]} 12. Rb1 {[%clk 0:02:36]} 12... Qa3
{[%clk 0:00:53.8]} 13. O-O {[%clk 0:02:07.1]} 13... Qe7 {[%clk 0:00:53.1]} 14.
Nb5 {[%clk 0:01:47.7]} 14... O-O {[%clk 0:00:19.2]} 15. Nc7 {[%clk 0:01:47.5]}
15... Na6 {[%clk 0:00:16.3]} 16. Nxa8 {[%clk 0:01:41.1]} 16... Rxa8 {[%clk
0:00:17.2]} 17. Rfc1 {[%clk 0:01:25.2]} 17... Nd5 {[%clk 0:00:16.3]} 18. Qb3
{[%clk 0:01:14.5]} 18... Nb6 {[%clk 0:00:12.6]} 19. a4 {[%clk 0:01:11.3]} 19...
Bxe2 {[%clk 0:00:11.2]} 20. a5 {[%clk 0:01:09.9]} 20... Nd5 {[%clk 0:00:11.6]}
21. Qxb7 {[%clk 0:01:08.9]} 21... Qxb7 {[%clk 0:00:11.6]} 22. Rxb7 {[%clk
0:01:08.5]} 22... Nab4 {[%clk 0:00:11.6]} 23. Bf1 {[%clk 0:00:51.4]} 23... Bxf1
{[%clk 0:00:10.7]} 24. Kxf1 {[%clk 0:00:52.3]} 24... a6 {[%clk 0:00:08.4]} 25.
Bd6 {[%clk 0:00:51.2]} 25... Nd3 {[%clk 0:00:05.9]} 26. Rxc6 {[%clk 0:00:51.5]}
26... h5 {[%clk 0:00:02]} 27. Rb8+ {[%clk 0:00:49.5]} 27... Rxb8 {[%clk
0:00:01.6]} 28. Bxb8 {[%clk 0:00:50.4]} 1-0